Cogmind - Beta 13 @@@ ROGUE MODE // 2024.04.11 @ 17:06:24 Player: HoneyComb Result: Destroyed by L-31 Rogue with Katana Performance ------------- Evolutions (1) 500 Regions Visited (2) 400 Robots Destroyed (4) 20 Value Destroyed (87) 87 Prototype IDs (0) 0 Alien Tech Used (0) 0 Bonus (0) 0 TOTAL SCORE: 1007 Bonus ------- None Cogmind --------- Core Integrity 0/400 Matter 300/300 Energy 100/100 System Corruption 1% Temperature Cool (0) Movement Core (50) Location -9/Materials Parts ------- > --- POWER (1) -------- (None) > --- PROPULSION (3) --- (None) > --- UTILITY (3) ------ Utility Shielding > --- WEAPON (2) ------- (None) > --- INVENTORY (5) ---- (None) Peak State ------------ > --- POWER ------------ Ion Engine > --- PROPULSION ------- Flight Unit Flight Unit Flight Unit > --- UTILITY ---------- Structural Scanner Utility Shielding Medium Armor Plating > --- WEAPON ----------- EM Pulse Gun > --- INVENTORY -------- (None) [Rating: 9] Favorites ----------- Power Ion Engine Engine Ion Engine Propulsion Flight Unit Wheel Wheel Flight Unit Flight Unit Utility Utility Shielding Device Structural Scanner Protection Utility Shielding Weapon Beam Cannon Energy Gun EM Pulse Gun Energy Cannon Beam Cannon Build | -11 -10 -9 ------- Run | Yrd Mat Mat Slots Evolved 2 | . . 2 Power . | . . . Propulsion 1 | . . 1 Utility 1 | . . 1 Weapon . | . . . Parts Attached 15 | 3 9 3 Power 2 | 1 1 . Engine 2 | 1 1 . Core . | . . . Reactor . | . . . Propulsion 6 | 2 3 1 Treads . | . . . Leg . | . . . Wheel 2 | 2 . . Hover . | . . . Flight 4 | . 3 1 Utility 5 | . 4 1 Device 2 | . 2 . Storage . | . . . Processor . | . . . Hackware . | . . . Protection 3 | . 2 1 Artifact . | . . . Weapon 2 | . 1 1 Energy Gun 1 | . . 1 Energy Cannon 1 | . 1 . Ballistic Gun . | . . . Ballistic Cannon . | . . . Launcher . | . . . Special Weapon . | . . . Impact Weapon . | . . . Slashing Weapon . | . . . Piercing Weapon . | . . . Special Melee Weapon . | . . . Unidentified Prototypes . | . . . Parts Lost 6 | . 1 5 Power 2 | . 1 1 Propulsion 3 | . . 3 Utility 1 | . . 1 Weapon . | . . . Highest Loss Streak 4 | . 1 4 To Critical Strikes . | . . . Average Slot Usage (%) 57 | . 70 42 Engine 10 | . 12 7 Wheel 8 | . 16 . Flight 12 | . 9 16 Device 9 | . 11 7 Protection 11 | . 12 11 Energy Cannon 4 | . 7 . Naked Turns 2 | . 2 . Heaviest Build 10 | 5 10 9 Greatest Support 20 | 20 20 12 Greatest Overweight (x) 2 | . 1 2 Average Overweight (x) . | . . . Largest Inventory Capacity 5 | 5 5 5 Average Capacity 5 | 5 5 5 Most Carried 3 | 3 3 2 Average Carried . | . . . Final Capacity 5 | 5 5 5 Final Carried 1 | . 1 . Class Distribution -------------------- 90% | Mutant 9% | Scavenger-Mutant Dominant Class ---------------- Mutant | -10/Materials Mutant | -9/Materials Resources | -11 -10 -9 ----------- Run | Yrd Mat Mat Matter Collected 306 | 180 126 . Remotely . | . . . Salvage Created 100 | . 100 . Parts 5 | . 5 . Haulers Intercepted . | . . . Recyclers Shooed . | . . . Parts Field Recycled . | . . . Retrieved Matter . | . . . Parts Self-Destructed . | . . . Prevented . | . . . Kills | -11 -10 -9 ------- Run | Yrd Mat Mat Combat Hostiles Destroyed 4 | . 4 . Melee 1 | . 1 . Cannons 3 | . 3 . Classes Destroyed 2 | . 2 . Swarmer 3 | . 3 . Grunt 1 | . 1 . Best Kill Streak 4 | . 4 . Combat Bots Only 4 | . 4 . Max Kills in Single Turn 1 | . 1 . Gunslinging . | . . . Exploded . | . . . Melee 1 | . 1 . Uniques/NPCs Destroyed . | . . . Combat | -11 -10 -9 -------- Run | Yrd Mat Mat Hostile Shots Fired 85 | . 38 47 Missed 25 | . 14 11 Damage Taken 841 | . 272 569 Core 432 | . 26 406 Absorbed by Shields . | . . . Redirected to Shielding 8 | . 5 3 Core Remaining (%) 94 | 100 89 . Volleys Fired 17 | . 17 . Largest 1 | . 1 . Hottest 60 | . 60 . Shots Fired 17 | . 17 . Gun . | . . . Cannon 17 | . 17 . Launcher . | . . . Special . | . . . Kinetic . | . . . Thermal 17 | . 17 . Explosive . | . . . Electromagnetic . | . . . Robot Hit Streak 5 | . 5 . Robot Miss Streak 6 | . 6 . Penetration Max . | . . . Secondary Targets . | . . . Shots Hit Robots 7 | . 7 . Core Hits 13 | . 5 8 Critical Kills . | . . . Critical Parts Destroyed . | . . . Critical Strikes . | . . . Melee Attacks . | . . . Impact . | . . . Slashing . | . . . Piercing . | . . . Sneak Attacks . | . . . Combat Hostiles . | . . . Follow-up Attacks . | . . . Damage Inflicted 213 | . 154 59 Guns . | . . . Cannons 141 | . 141 . Explosions . | . . . Melee . | . . . Ramming 72 | . 13 59 Kinetic . | . . . Thermal 141 | . 141 . Explosive . | . . . Electromagnetic . | . . . Impact . | . . . Slashing . | . . . Piercing . | . . . Highest Corruption 1 | . 1 1 Average Corruption 1 | . 1 1 Corruption Purged . | . . . Corruption Blocked . | . . . Effects 1 | . 1 . Matter Fused 1 | . 1 . Overload Shots . | . . . Overflow Damage . | . . . Projectiles . | . . . Explosions . | . . . Melee . | . . . Knockbacks . | . . . Impact . | . . . Kinetic . | . . . Secondary . | . . . Self-Inflicted Damage 33 | . 6 27 Shots . | . . . Rammed 23 | . 3 20 Targets Rammed 23 | . 3 20 Kicked . | . . . Crushed . | . . . Highest Temperature 290 | . 290 . Average Temperature 123 | . 123 . Received Heat Transfer 276 | . 87 189 Siege Activations . | . . . Robots Corrupted . | . . . Combat Hostiles . | . . . Parts Fried . | . . . Impact Corruptions . | . . . Robots Melted . | . . . Combat Hostiles . | . . . Parts Melted 3 | . 3 . Heat Transferred 296 | . 296 . Parts Sabotaged . | . . . Parts Stolen . | . . . Parts Stripped . | . . . Power Chain Reactions . | . . . Alert | -11 -10 -9 ------- Run | Yrd Mat Mat Peak Influence 225 | . 120 225 Initial 50 | . . 50 Average 77 | . 57 114 Maximum Alert Level 1 | . . 1 Low Security (%) 97 | 100 100 93 Level 1 2 | . . 6 Level 2 . | . . . Level 3 . | . . . Level 4 . | . . . Level 5 . | . . . High Security . | . . . Max Security . | . . . Squads Dispatched 6 | . 4 2 Investigation 3 | . 3 . Extermination . | . . . Reinforcement 3 | . 1 2 Assault . | . . . Garrison . | . . . Intercept . | . . . Searches Triggered . | . . . Construction Impeded . | . . . Haulers Reinforced . | . . . Active Scanning Responses . | . . . Cargo Convoy Interrupts . | . . . Stealth | -11 -10 -9 --------- Run | Yrd Mat Mat Distress Signals 1 | . 1 . Communications Jammed . | . . . Distress Signals . | . . . Times Spotted 28 | . 11 17 Peak Tracking Total 13 | . 7 13 Tactical Retreats 3 | . . 3 Traps | -11 -10 -9 ------- Run | Yrd Mat Mat Traps Triggered 2 | . 2 . Indirectly . | . . . Trap Hack Attempts . | . . . Triggered . | . . . Disarmed . | . . . Reprogrammed . | . . . Reused . | . . . Traps Extracted . | . . . Installed . | . . . Triggered . | . . . Machines | -11 -10 -9 ---------- Run | Yrd Mat Mat Machines Disabled 1 | . 1 . Max in Single Turn 1 | . 1 . Machines Repaired . | . . . Machines Dismantled . | . . . Machines Sabotaged . | . . . Overloaded Fab Kills . | . . . Hacking | -11 -10 -9 --------- Run | Yrd Mat Mat Machines Accessed 2 | . . 2 Terminals 2 | . . 2 Fabricators . | . . . Repair Stations . | . . . Recycling Units . | . . . Scanalyzers . | . . . Garrison Access . | . . . Total Hacks 3 | . . 3 Successful 1 | . . 1 Failed 2 | . . 2 Catastrophic 2 | . . 2 Database Lockouts . | . . . Manual 1 | . . 1 Terminals 3 | . . 3 Fabricators . | . . . Repair Stations . | . . . Recycling Units . | . . . Scanalyzers . | . . . Garrison Access . | . . . Terminal Hacks 1 | . . 1 Record 1 | . . 1 Fabricator Hacks . | . . . Repair Station Hacks . | . . . Recycling Unit Hacks . | . . . Scanalyzer . | . . . Garrison Access Hacks . | . . . Unauthorized Hacks . | . . . Terminals . | . . . Fabricators . | . . . Repair Stations . | . . . Recycling Units . | . . . Scanalyzers . | . . . Garrison Access . | . . . Data Cores Recovered . | . . . Used . | . . . Hacking Detections 2 | . . 2 Full Trace Events . | . . . Feedback Events . | . . . Feedback Blocked . | . . . Robot Schematics Acquired . | . . . Robots Built . | . . . Authchips . | . . . Time . | . . . Total Robot Build Rating . | . . . Part Schematics Acquired . | . . . Parts Built . | . . . Authchips . | . . . Time . | . . . Total Part Build Rating . | . . . Parts Repaired . | . . . Time . | . . . Parts Recycled . | . . . Recycled Matter . | . . . Retrieved Matter . | . . . Retrieved Components . | . . . Parts Scanalyzed . | . . . Part Schematics Acquired . | . . . Parts Damaged . | . . . Bothacking | -11 -10 -9 ------------ Run | Yrd Mat Mat Used RIF Installer . | . . . Robots Hacked . | . . . Non-combat . | . . . Combat . | . . . Robot Hacks Applied . | . . . Relay Couplers Released . | . . . Fabnet Peak Effective % . | . . . Robots Rewired . | . . . Allies Hacked . | . . . Hacks Repelled . | . . . Allies | -11 -10 -9 -------- Run | Yrd Mat Mat Total Allies . | . . . Largest Group . | . . . Highest-Rated Group . | . . . Highest-Rated Ally . | . . . Total Orders . | . . . Ally Attacks . | . . . Total Damage . | . . . Kills . | . . . Allies Corrupted . | . . . Allies Melted . | . . . Intel | -11 -10 -9 ------- Run | Yrd Mat Mat Robot Analysis Total . | . . . Derelict Logs Recovered . | . . . Drone Launches . | . . . Drone Recoveries . | . . . Exploration | -11 -10 -9 ------------- Run | Yrd Mat Mat Turns Passed 479 | 39 233 207 Spaces Moved 681 | 43 305 333 Core 81 | 9 . 72 Treads . | . . . Legs . | . . . Wheels 170 | 34 136 . Hover . | . . . Flight 430 | . 169 261 Fastest Speed 34 | 50 37 34 Average Speed 51 | 73 57 43 Slowest Speed 150 | 80 120 150 Overloaded Moves . | . . . Propulsion Burnouts . | . . . Robots Hopped 5 | . 3 2 Cave-ins Triggered . | . . . Exploration Rate (%) 22 | 3 39 25 Regions Visited 2 Branch Regions . Pre-discovered Areas . | . . . Known Exits Taken . | . . . Unknown Exits Taken 2 | 1 1 . Scrap Searched . | . . . Spaces Dug . | . . . Terrain Destroyed . | . . . Melee . | . . . Projectile . | . . . AOE . | . . . Terrain Rammed . | . . . Walls Destroyed . | . . . Machines Disabled . | . . . Actions | -11 -10 -9 --------- Run | Yrd Mat Mat Total 788 | 50 344 394 Wait 36 | . . 36 Move 669 | 42 298 329 Hop 5 | . 3 2 Pick Up 13 | 4 7 2 Fast Attach . | . . . Attach 14 | 3 8 3 Detach 4 | . 4 . Swap 1 | . 1 . Drop 6 | 1 3 2 Fire 17 | . 17 . Melee . | . . . Ram 23 | . 3 20 Kick . | . . . Crush . | . . . Escape Stasis . | . . . Rewire . | . . . Trap . | . . . Miscellaneous . | . . . Route ------- -11/Scrapyard -10/Materials (discovered 2 exits: *Mat x2) -9/Materials History --------- Turn | Location | Event 15 | -11/Scrapyard | Discovered new exit (range 15) 40 | -11/Scrapyard | Entered Materials 189 | -10/Materials | Met 8R-AWN 235 | -10/Materials | Discovered new exit (range 15) 269 | -10/Materials | Discovered new exit (range 7) 273 | -10/Materials | Entered another Materials area 273 | -9/Materials | Evolved 2 slots: Propulsion x1, Utility x1 427 | -9/Materials | Core integrity fell below 50% 436 | -9/Materials | Core integrity fell below 20% 449 | -9/Materials | Lost 4 parts (1p2n1u) 480 | -9/Materials | Destroyed by L-31 Rogue with Katana Last Messages --------------- Flight Unit destroyed. K-01 Serf collects debris. Structural Scanner destroyed. Ion Engine destroyed. K-01 Serf collects debris. Slammed into G-47 Trooper. Slammed into G-34 Mercenary. Slammed into G-47 Trooper. Slammed into G-34 Mercenary. Destabilizing: Core damaged (-4). Slammed into Y-45 Defender. Destabilizing: System corrupted (+1). Slammed into Y-45 Defender. Slammed into U-05 Engineer. Slammed into G-34 Mercenary. Critical hit (Burn: +37). Slammed into G-34 Mercenary. Destabilizing: Core damaged (-4). Slammed into G-34 Mercenary. Connecting with Terminal... Map ----- +----------------------------------------------------+ | ?????????????????????????????????????????????????? | | ?????????????????????????????????????????????????? | | ?????????????????????????????????????????????????? | | ?????????????????????????????????????????????????? | | ?????????????????????????????????????????????????? | | ?????????????????????????????????????????????????? | | ?????????????????????????????????????????????????? | | ?????????????????????????????????????????????????? | | ?????????????????????????????????????????????????? | | ?????????????????????????????????????????????????? | | ?????????????????????????????????????????????????? | | ?????????????????????????????????????????????????? | | ?????????????????????????????????????????????????? | | ?????????????????????????????????????????????????? | | ?????????????????????????????????????????????????? | | ?????????????????????????????????????????????????? | | ?????????????????????????????????????????????????? | | ?????????????????????????????????????????????????? | | ?????????????????????????????????????????????????? | | ??## ????????????????????????????????????????????? | | ??## ????????????????###?????????????????????????? | | ??## ???????????????? ?????????????????????????? | | ??## ????????????????# #?????????????????????????? | | ??## ???????????????# #?????????????????????????? | | ?### # ????????????# ##########????????????????? | | ?### ############### # @ T #????????????????? | | ?## ############## # l""" #????????????????? | | ?## #g """ #????????????????? | | ?## gY """g #????????????????? | | ?## # gg #????????????????? | | ?## % ##+#########+### """ #????????????????? | | ?####??## ### ???# g""" #????????????????? | | ?####??## ##???????# """ #????????????????? | | ???????## """ ##???????# #????????????????? | | ???????## """ ##???????##########????????????????? | | ???????## """ ##?????????????????????????????????? | | ???????## """ ##?????????????????????????????????? | | ???????## ##?????????????????????????????????? | | ???????## """ ##?????????????????????????????????? | | ######### """ ##?????????????????????????????????? | | ######### """ ##?????????????????????????????????? | | %%%%%%%%/%""" ##?????????????????????????????????? | | %######## ###????????????????????????????????? | | %################????????????????????????????????? | | %########## ##????????????????????????????????? | | ########## ##????????????????????????????????? | | #### ##????????????????????????????????? | | + ! ##????????????????????????????????? | | ## ##????????????????????????????????? | | ##### ## ##????????????????????????????????? | +----------------------------------------------------+ Best States ------------- Heat Dissipation 28 Energy Generation 10 Energy Capacity 250 Matter Stores 300 Matter Capacity 300 Sight Range 16 Terrain Scan Density 10 Utility Shielding 33 Evasion (%) 63 Item Schematics ----------------- None Robot Schematics ------------------ None Fabricated ------------ Nothing Alien Tech Used ----------------- None Achievements -------------- None Challenges ------------ None Game ------ Seed RefineryArcFirepult Manual? 0 Play Time 00:14:50 Cumulative 2.8 hours Start 2024.04.09 @ 18:12:41 End 2024.04.11 @ 17:06:24 Sessions 6 Manual Loads 0 Difficulty Rogue Special Mode None Game No. 8 Rogue 3 Adventurer 5 Explorer 0 Win Type - Total 0 Types 0/0/0/0/0/0/0/0/0 Lore% 1 Gallery% 5 Achievement% 5 Wizard Run 0 Options --------- Layout 1 ASCII 0 Keyboard 0 Movement Numpad Keybinds 0 Fullscreen 1 Font 24/Smallcaps Map View 50x35 Zoom Use 0% Tactical HUD 0 Map Filters NONE Filters NONE Steam 1 RUN: 3d6346b9-f971-48da-94b9-830ee8470190